Workbook

Sheet template
A2: Complete the budget template below by filling in the shaded cells. This template uses formulas to automatically calculate totals. Do not alter the formatting or formulas in unshaded cells. Rows may be added to accommodate additional personnel or funding sources, if necessary. An example is included on the next worksheet. Contact grants@cdfa.ca.gov for help filling out this template.
A4: Project Title:
A5: Project Leader(s) and Organization:
D7: 2015 | E7: 2016 | F7: 2017 | G7: Total
A8: A. | B8: PERSONNEL (name, role, % based on full time salary)
B9: Salary
G10: =SUM(D10:F10) -> 0
G11: =SUM(D11:F11) -> 0
G12: =SUM(D12:F12) -> 0
G13: =SUM(D13:F13) -> 0
G14: =SUM(D14:F14) -> 0
B15: Salary Total | D15: =SUM(D10:D14) -> 0 | E15: =SUM(E10:E14) -> 0 | F15: 0 | G15: =SUM(G8:G14) -> 0
B16: Benefits
G17: =SUM(D17:F17) -> 0
G18: =SUM(D18:F18) -> 0
G19: =SUM(D19:F19) -> 0
G20: =SUM(D20:F20) -> 0
G21: =SUM(D21:F21) -> 0
B22: Benefits Total | D22: =SUM(D17:D21) -> 0 | E22: =SUM(E17:E21) -> 0 | F22: 0 | G22: 0
B24: Personnel Cost (A) | D24: =D15+D22 -> 0 | E24: =E15+E22 -> 0 | F24: 0 | G24: 0
A26: B. | B26: OPERATING EXPENSES
B27: Supplies | G27: =SUM(D27:F27) -> 0
B28: Equipment | G28: =SUM(D28:F28) -> 0
B29: Travel | G29: =SUM(D29:F29) -> 0
B30: Professional/Consultant Services | G30: =SUM(D30:F30) -> 0
B31: Other Expenses | G31: =SUM(D31:F31) -> 0
B32: Indirect Cost | D32: =10/100*D24 -> 0 | E32: =10/100*E24 -> 0 | F32: 0
B33: Operating Cost (B) | D33: =SUM(D27:D32) -> 0 | E33: =SUM(E27:E32) -> 0 | F33: 0 | G33: =SUM(G27:G31) -> 0
B35: TOTAL GRANT REQUEST (A+B) | D35: =D24+D33 -> 0 | E35: =E24+E33 -> 0 | F35: =F24+F33 -> 0 | G35: =G24+G33 -> 0
A37: C. | B37: OTHER FUNDING SOURCES
G38: =SUM(D38:F38) -> 0
G39: =SUM(D39:F39) -> 0
G40: =SUM(D40:F40) -> 0
G41: =SUM(D41:F41) -> 0
G42: =SUM(D42:F42) -> 0
B43: TOTAL OTHER FUNDING (C) | D43: =SUM(D38:D42) -> 0 | E43: =SUM(E38:E42) -> 0 | F43: 0 | G43: 0
B47: TOTAL PROJECT BUDGET (A+B+C) | D47: =D24+D33+D43 -> 0 | E47: =E24+E33+E43 -> 0 | F47: =F24+F33+F43 -> 0 | G47: =G24+G33+G43 -> 0

Sheet example
A2: Project Title: | C2: XYZ Dairy Digester Research Project
A3: Project Leader(s) and Organization: | C3: Jane Scientist and Sam Researcher
D5: 2015 | E5: 2016 | F5: 2017 | G5: Total
A6: A. | B6: PERSONNEL (name, role, % based on full time salary)
B7: Salary
B8: Jane Scientist, project leader (14%) | D8: 7580 | E8: 7580 | F8: 7580 | G8: =SUM(D8:F8) -> 22740
B9: Sam Researcher, project manager (14%) | D9: 6293 | E9: 6293 | F9: 6293 | G9: =SUM(D9:F9) -> 18879
B10: Sally Student graduate researcher (50%) | D10: 18000 | E10: 18000 | F10: 18000 | G10: =SUM(D10:F10) -> 54000
G11: =SUM(D11:F11) -> 0
B12: Salary Total | D12: =SUM(D8:D11) -> 31873 | E12: =SUM(E8:E11) -> 31873 | F12: 31873 | G12: 95619
B13: Benefits
B14: Jane Scientist, project leader (20%) | D14: 1516 | E14: 1516 | F14: 1516 | G14: =SUM(D14:F14) -> 4548
B15: Sam Researcher, project manager (36%) | D15: 2266 | E15: 2266 | F15: 2266 | G15: =SUM(D15:F15) -> 6798
B16: Sally Student, graduate researcher (50%) | D16: 10000 | E16: 10000 | F16: 10000 | G16: =SUM(D16:F16) -> 30000
G17: =SUM(D17:F17) -> 0
B18: Benefits Total | D18: =SUM(D14:D17) -> 13782 | E18: =SUM(E14:E17) -> 13782 | F18: =SUM(F14:F17) -> 13782 | G18: =SUM(G14:G17) -> 41346
B20: Personnel Cost (A) | D20: =D12+D18 -> 45655 | E20: =E12+E18 -> 45655 | F20: =F12+F18 -> 45655 | G20: =G12+G18 -> 136965
A22: B. | B22: OPERATING EXPENSES
B23: Supplies | D23: 2000 | E23: 2000 | F23: 2000 | G23: =SUM(D23:F23) -> 6000
B24: Equipment | D24: 0 | E24: 0 | F24: 0 | G24: =SUM(D24:F24) -> 0
B25: Travel | D25: 5650 | E25: 5650 | F25: 5650 | G25: =SUM(D25:F25) -> 16950
B26: Professional/Consultant Services | D26: 4000 | E26: 4000 | F26: 4000 | G26: =SUM(D26:F26) -> 12000
B27: Other Expenses | D27: 12300 | E27: 12300 | F27: 12300 | G27: =SUM(D27:F27) -> 36900
B28: Indirect Cost | D28: =10/100*D20 -> 4565.5 | E28: =10/100*E20 -> 4565.5 | F28: 4565.5
B29: Operating Cost (B) | D29: =SUM(D23:D28) -> 28515.5 | E29: =SUM(E23:E28) -> 28515.5 | F29: =SUM(F23:F28) -> 28515.5 | G29: =SUM(G23:G27) -> 71850
B31: TOTAL CDFA FUNDING REQUESTED (A+B) | D31: =D20+D29 -> 74170.5 | E31: =E20+E29 -> 74170.5 | F31: =F20+F29 -> 74170.5 | G31: =G20+G29 -> 208815
A33: C. | B33: OTHER FUNDING SOURCES
B34: ABC Federal Grant | D34: 10000 | E34: 10000 | F34: 10000 | G34: =SUM(D34:F34) -> 30000
G35: =SUM(D35:F35) -> 0
G36: =SUM(D36:F36) -> 0
G37: =SUM(D37:F37) -> 0
G38: =SUM(D38:F38) -> 0
B39: TOTAL OTHER FUNDING (C) | D39: =SUM(D34:D38) -> 10000 | E39: =SUM(E34:E38) -> 10000 | F39: 10000 | G39: 30000
B43: TOTAL PROJECT BUDGET (A+B+C) | D43: =D20+D29+D39 -> 84170.5 | E43: =E20+E29+E39 -> 84170.5 | F43: =F20+F29+F39 -> 84170.5 | G43: =G20+G29+G39 -> 238815
